bitfinex-derivatives/quotes_SOLF0:USTF0_20240912
["timestamp","ask_amount","ask_price","bid_price","bid_amount"]
[1726108419797,14.6977,135.21,135.17,3.3284]
[1726108420403,14.6977,135.21,135.15,14.0806]
[1726108420404,11.37,135.19,135.16,3.3288]
[1726108422501,14.6983,135.19,135.14,1.4046]
[1726108422699,11.37,135.19,135.14,1.4046]
[1726108423797,11.37,135.19,135.16,3.3287]
[1726108424503,14.6981,135.19,135.16,3.3287]
[1726108425302,14.6984,135.18,135.14,1.4046]
[1726108425903,14.6984,135.18,135.14,4.7339]
[1726108427306,14.6984,135.18,135.15,3.3291]
[1726108428121,11.37,135.18,135.15,3.3291]
[1726108430523,14.6984,135.18,135.15,3.3291]
[1726108431021,11.37,135.17,135.09,1.3195]
[1726108431214,11.37,135.16,135.09,14.0596]
[1726108431920,1.3727,135.24,135.09,14.0596]
[1726108431921,11.37,135.14,135.09,14.0596]
[1726108432823,11.37,135.14,135.11,3.3299]
[1726108433824,11.37,135.14,135.1,3.3302]
[1726108433825,11.37,135.13,135.1,3.3302]
[1726108435322,14.6996,135.13,135.1,3.3302]
[1726108437027,11.37,135.13,135.1,3.3302]
[1726108438228,3.3294,135.14,135.11,3.3301]
[1726108438422,11.37,135.13,135.11,3.3301]
[1726108438627,3.3294,135.14,135.11,3.3301]
[1726108438827,14.6994,135.14,135.11,3.3301]
[1726108440131,14.6994,135.14,135.1,3.3302]
[1726108440320,14.6996,135.13,135.1,3.3302]
[1726108441732,11.37,135.12,135.09,3.3305]
[1726108442817,14.6996,135.13,135.1,3.3303]
[1726108443021,11.37,135.13,135.1,3.3303]
[1726108444325,14.6994,135.14,135.08,11.37]
[1726108444833,14.6994,135.14,135.1,3.3301]
[1726108446225,14.6994,135.14,135.11,3.33]
[1726108446432,11.37,135.14,135.11,3.33]
[1726108447422,3.3292,135.15,135.11,3.33]
[1726108447628,14.6992,135.15,135.12,3.3298]
[1726108451635,11.37,135.13,135.04,1.3384]
[1726108451932,11.37,135.13,135.06,11.37]
[1726108452341,14.6997,135.13,135.1,3.3302]
[1726108452842,11.37,135.13,135.1,3.3302]
[1726108453543,14.6999,135.12,135.08,3.3308]
[1726108454838,14.7001,135.11,135.07,3.331]
[1726108455142,1.4013,135.19,135.05,11.37]
[1726108455340,3.3295,135.14,135.07,11.37]
[1726108455643,11.37,135.13,135.1,3.3302]
[1726108456439,11.37,135.13,135.09,3.3305]
[1726108457646,14.6996,135.13,135.09,3.3305]
[1726108458740,11.37,135.12,135.1,3.3303]
[1726108458939,11.37,135.11,135.04,1.3384]
[1726108459148,14.7001,135.11,135.07,3.3308]
[1726108459644,14.7001,135.11,135.08,3.3307]
[1726108460149,11.37,135.11,135.08,3.3307]
[1726108462734,3.3301,135.11,135.07,3.331]
[1726108462939,11.37,135.1,135.07,3.331]
[1726108463647,1.4013,135.19,135.02,1.3135]
[1726108463838,1.17559544,135.18,135.02,1.3135]
[1726108464233,11.37,135.06,135.03,3.332]
[1726108464840,11.37,135.06,135.04,3.3317]
[1726108466637,11.37,135.06,135.03,3.332]
[1726108467041,11.37,135.05,135.03,3.332]
[1726108467438,14.7016,135.05,135.01,3.3324]
[1726108468243,11.37,135.03,135.01,3.3324]
[1726108473444,11.37,135.03,134.99,1.411]
[1726108473445,11.37,135.03,135.02,3.3323]
[1726108475238,11.37,135.03,135.01,3.3324]
[1726108479446,11.37,135.02,134.99,1.411]
[1726108480441,11.37,135.02,134.99,4.744]
[1726108481549,11.37,135.02,135.0,3.3328]
[1726108481748,11.37,135.02,134.99,1.411]
[1726108482344,11.37,135.02,134.99,4.7439]
[1726108483160,11.37,135.02,134.99,1.411]
[1726108484645,11.37,135.02,134.99,4.7439]
[1726108486050,1.3403,135.14,135.0,3.3328]
[1726108486251,11.37,135.02,135.0,3.3328]
[1726108487152,11.37,135.02,134.99,4.7439]
[1726108491456,11.37,135.02,134.99,3.3329]
[1726108491655,11.37,135.0,134.99,3.3329]
[1726108492055,11.37,135.0,134.98,3.3332]
[1726108492754,11.37,134.99,134.97,3.3334]
[1726108493655,17.73449883,135.13,134.98,3.3333]
[1726108493656,11.37,135.0,134.98,3.3333]
[1726108497067,11.37,135.0,134.99,3.333]
[1726108497260,11.37,135.01,134.99,3.333]
[1726108499166,3.3322,135.03,134.99,3.333]
[1726108499463,11.37,135.01,134.99,3.333]
[1726108500255,11.37,135.01,135.0,3.3328]
[1726108500461,11.37,135.02,134.96,12.7634]
[1726108501865,11.37,135.02,135.0,3.3326]
[1726108504270,11.37,135.02,135.01,3.3325]
[1726108504458,1.3403,135.14,134.96,1.3934]
[1726108504659,1.17588857,135.13,135.03,3.3318]
[1726108504860,11.37,135.06,135.03,3.3318]
[1726108505066,11.37,135.06,135.01,11.37]
[1726108505872,11.37,135.06,135.02,1.3332]
[1726108506366,11.37,135.06,135.03,3.332]
[1726108507073,11.37,135.06,135.04,3.3318]
[1726108507967,1.3403,135.14,135.03,11.37]
[1726108508569,11.37,135.1,135.07,3.3308]
[1726108508872,11.37,135.1,135.03,11.37]
[1726108509577,11.37,135.1,135.07,3.3308]
[1726108510277,11.37,135.1,135.08,3.3308]
[1726108512266,3.3296,135.13,135.05,11.37]
[1726108512469,3.3296,135.13,135.04,1.3467]
[1726108512470,3.3296,135.13,135.09,3.3306]
[1726108512674,11.37,135.12,135.09,3.3306]
[1726108512871,11.37,135.12,135.09,3.3304]
[1726108513270,11.37,135.12,135.07,1.3518]
[1726108513977,11.37,135.12,135.1,3.3303]
[1726108514578,3.3292,135.15,135.11,3.33]
[1726108514965,11.37,135.13,135.07,12.7218]
[1726108515166,4.7467,135.16,135.08,11.37]
[1726108515372,1.4177,135.16,135.08,12.6894]
[1726108515568,11.37,135.13,135.08,1.3194]
[1726108515773,11.37,135.13,135.1,3.3302]
[1726108516677,11.37,135.13,135.11,3.3299]
[1726108519379,11.37,135.14,135.11,3.3299]
[1726108527187,11.37,135.14,135.12,3.3297]
[1726108527389,11.37,135.15,135.11,11.37]
[1726108527591,11.37,135.17,135.11,11.37]
[1726108528091,14.6987,135.17,135.13,3.3294]
[1726108528885,1.4159,135.19,135.14,3.3292]
[1726108529097,11.37,135.17,135.09,1.4241]
[1726108529284,11.37,135.15,135.09,12.7941]
[1726108529689,11.37,135.15,135.12,3.3297]
[1726108531384,14.6991,135.15,135.12,3.3297]
[1726108536183,14.6991,135.15,135.11,3.33]
[1726108537285,3.3293,135.14,135.11,3.33]
[1726108537485,3.3293,135.14,135.1,3.3303]
[1726108537687,393.0,135.28,135.13,11.37]
[1726108537894,4.39051677,135.27,135.14,4.0647]
[1726108538203,11.37,135.23,135.17,11.37]
[1726108538382,6.40679312,135.27,135.15,11.37]
[1726108538585,11.37,135.21,135.17,3.3284]
[1726108538790,3.76257277,135.2,135.15,11.37]
[1726108539093,14.6977,135.21,135.16,3.3288]
[1726108539494,18.47877662,135.21,135.16,3.3288]
[1726108540494,15.15107662,135.21,135.17,3.3285]
[1726108540893,15.15107662,135.21,135.15,11.37]
[1726108541395,11.37,135.2,135.16,3.3288]
[1726108541595,11.37,135.18,135.14,1.4237]
[1726108542401,11.37,135.18,135.15,3.329]
[1726108546303,17.4438,135.21,135.15,11.37]
[1726108546495,14.1162,135.21,135.15,11.37]
[1726108546695,3.72862584,135.2,135.17,3.3284]
[1726108549502,17.4438,135.21,135.17,3.3284]
[1726108549702,3.74333052,135.2,135.17,3.3284]
[1726108551807,7.07143052,135.2,135.16,3.3288]
[1726108552011,3.74333052,135.2,135.15,11.37]
[1726108552207,3.74333052,135.2,135.18,3.3283]
[1726108554708,3.74333052,135.2,135.17,3.3285]
[1726108555918,14.1162,135.21,135.17,3.3285]
[1726108556208,11.37,135.22,135.16,11.37]
[1726108556801,11.37,135.21,135.16,11.37]
[1726108557005,11.37,135.21,135.18,3.3282]
[1726108557508,15.07800473,135.21,135.18,3.3282]
[1726108558105,18.40570473,135.21,135.17,3.3285]
[1726108558313,11.37,135.2,135.14,1.4237]
[1726108558903,14.6979,135.2,135.16,3.3287]
[1726108560909,3.3281,135.19,135.16,3.3287]
[1726108561213,11.37,135.2,135.16,3.3287]
[1726108562117,11.37,135.2,135.15,3.329]
[1726108562609,14.1264,135.2,135.15,3.329]
[1726108563907,3.3281,135.19,135.15,3.329]
[1726108564108,3.3281,135.19,135.16,3.3288]
[1726108565910,3.3281,135.19,135.15,3.3291]
[1726108566110,3.3285,135.18,135.14,1.4237]
[1726108566315,11.37,135.16,135.1,2.661]
[1726108566622,14.6991,135.15,135.09,11.37]
[1726108566810,11.37,135.15,135.1,3.3302]
[1726108567016,3.3295,135.14,135.05,1.3535]
[1726108567218,11.37,135.13,135.08,11.37]
[1726108567911,15.13396164,135.13,135.09,3.3304]
[1726108568315,18.46356164,135.13,135.08,3.3307]
[1726108568518,11.37,135.11,135.05,1.3535]
[1726108569009,11.37,135.12,135.05,12.7235]
[1726108569223,11.37,135.12,135.07,11.37]
[1726108569417,3.67365617,135.12,135.07,11.37]
[1726108569619,14.6996,135.13,135.08,3.3306]
[1726108570222,3.7010439,135.12,135.08,3.3306]
[1726108572223,11.37,135.13,135.09,3.3305]
[1726108572817,14.98043002,135.13,135.09,3.3305]
[1726108573220,11.37,135.12,135.08,3.3308]
[1726108575627,3.70344279,135.13,135.09,3.3306]
[1726108575924,3.70344279,135.13,135.07,11.37]
[1726108576118,3.70344279,135.13,135.09,3.3305]
[1726108578831,14.6995,135.14,135.07,11.37]
[1726108579531,14.6995,135.14,135.09,3.3305]
[1726108580325,3.3297,135.13,135.09,3.3305]
[1726108580531,7.05313139,135.13,135.09,3.3305]
[1726108587627,3.3302,135.11,135.07,11.37]
[1726108587832,3.72343139,135.13,135.07,11.37]
[1726108588333,3.3299,135.12,135.08,3.3306]
[1726108588938,3.3299,135.12,135.09,11.37]
[1726108589141,3.3299,135.12,135.09,14.7006]
[1726108589440,7.07904253,135.13,135.09,14.7006]
[1726108589639,7.07904253,135.13,135.09,3.3306]
[1726108594746,7.07904253,135.13,135.08,14.7008]
[1726108594747,3.33,135.12,135.08,14.7008]
[1726108595137,3.33,135.12,135.08,3.3308]
[1726108596843,3.3301,135.11,135.08,3.3308]
[1726108597238,11.37,135.12,135.07,3.331]
[1726108597642,11.37,135.12,135.06,3.3311]
[1726108597643,3.3303,135.1,135.06,3.3311]
[1726108598241,3.3303,135.1,135.05,12.7235]
[1726108598548,3.3302,135.11,135.07,3.331]
[1726108600046,3.3302,135.11,135.08,3.3308]
[1726108602350,3.3302,135.11,135.07,3.331]
[1726108607950,14.6998,135.12,135.08,3.3308]
[1726108608546,18.37945491,135.12,135.08,3.3308]
[1726108608741,3.3301,135.11,135.07,3.331]
[1726108609649,15.04965491,135.12,135.06,11.37]
[1726108610855,3.3301,135.11,135.07,3.3309]
[1726108611056,11.37,135.1,135.05,12.7235]
[1726108611953,14.7005,135.1,135.06,3.3311]
[1726108612454,18.46335536,135.1,135.06,3.3311]
[1726108613859,3.331,135.08,135.04,4.7057]
[1726108614055,11.37,135.09,135.04,4.7057]
[1726108614357,3.76285536,135.1,135.04,4.7057]
[1726108614358,15.13285536,135.1,135.04,12.7441]
[1726108614658,11.37,135.1,135.04,12.7441]
[1726108615554,3.75119391,135.09,135.04,12.7441]
[1726108615755,7.08179391,135.09,135.05,3.3315]
[1726108618251,14.7003,135.1,135.06,3.3313]
[1726108618451,14.7003,135.1,135.05,11.37]
[1726108618452,11.37,135.1,135.05,11.37]
[1726108618648,15.08972105,135.1,135.05,11.37]
[1726108619958,3.3308,135.09,135.04,4.7058]
[1726108620359,3.3308,135.08,135.04,4.7058]
[1726108620565,3.3308,135.08,135.04,1.3741]
[1726108620566,14.7008,135.08,135.04,1.3741]
[1726108620765,14.7008,135.08,135.03,14.702]
[1726108620766,11.37,135.08,135.03,3.332]
[1726108621258,3.3312,135.07,135.03,3.332]
[1726108622062,14.7009,135.08,135.04,14.7018]
[1726108622262,1.3343,135.09,135.04,14.7018]
[1726108622465,1.3343,135.09,135.04,11.37]
[1726108622858,4.665,135.09,135.05,3.3315]
[1726108623366,4.665,135.09,135.04,11.37]
[1726108623564,4.665,135.09,135.04,14.7017]
[1726108626158,3.3308,135.08,135.04,14.7017]
[1726108626558,3.71972105,135.1,135.04,11.37]
[1726108626757,11.37,135.11,135.05,11.37]
[1726108627064,3.71296096,135.1,135.05,11.37]
[1726108627773,3.71296096,135.1,135.06,3.3311]
[1726108627956,7.04326096,135.1,135.06,3.3311]
[1726108630876,3.3306,135.09,135.06,3.3311]
[1726108631078,3.3306,135.09,135.05,3.3315]
[1726108631461,3.3308,135.08,135.05,3.3315]
[1726108631761,3.3308,135.08,135.04,14.7017]
[1726108632162,3.3312,135.07,135.02,12.6928]
[1726108632375,3.3312,135.07,135.03,3.3319]
[1726108632570,11.37,135.09,135.02,12.6928]
[1726108633476,3.3311,135.07,135.03,3.3319]
[1726108637685,3.3311,135.07,135.02,16.025]
[1726108637886,14.7011,135.07,135.02,16.025]
[1726108638286,3.3314,135.06,135.02,16.025]
[1726108638584,11.37,135.07,135.03,3.3319]
[1726108639387,11.37,135.09,135.04,3.3317]
[1726108639785,3.331,135.08,135.04,3.3317]
[1726108640993,3.331,135.08,135.03,3.3319]
[1726108642492,3.3311,135.07,135.03,3.3319]
[1726108649596,3.3313,135.06,135.03,3.3319]
[1726108650096,3.3313,135.06,135.01,15.08249633]
[1726108650597,3.3313,135.06,135.02,3.3322]
[1726108651195,3.3316,135.05,135.02,3.3322]
[1726108651598,3.3316,135.05,135.01,3.3325]
[1726108653692,3.3319,135.04,135.0,8.35009411]
[1726108653893,3.3319,135.04,135.0,15.9976]
[1726108654196,11.37,135.06,135.0,12.6649]
[1726108654699,3.3317,135.05,135.01,3.3325]
[1726108656299,14.7014,135.06,135.02,3.3323]
[1726108656499,3.3314,135.06,135.02,3.3323]
[1726108658303,3.3311,135.07,135.03,3.332]
[1726108661201,2.7421,135.09,135.02,11.37]
[1726108661506,3.75415606,135.23,135.05,11.37]
[1726108661693,7.00010967,135.11,135.06,3.3312]
[1726108661895,114.48068912,135.12,135.06,3.3312]
[1726108662098,11.37,135.11,135.06,3.3312]
[1726108663002,3.3303,135.1,135.06,3.3312]
[1726108663201,11.37,135.09,135.05,3.3315]
[1726108663408,11.37,135.09,135.03,11.37]
[1726108663598,3.3308,135.08,135.03,11.37]
[1726108663798,14.7008,135.08,135.03,11.37]
[1726108664007,14.7008,135.08,135.04,3.3317]
[1726108664208,3.3311,135.07,135.03,11.37]
[1726108664400,3.3311,135.07,135.01,11.37]
[1726108664601,3.3311,135.07,135.02,3.3321]
[1726108664802,3.3314,135.06,135.02,3.3321]
[1726108665810,3.3316,135.05,135.02,3.3321]
[1726108667111,3.3314,135.06,135.02,3.3321]
[1726108670805,3.3313,135.07,135.02,3.3321]
[1726108671201,14.7013,135.07,135.02,3.3321]
[1726108671405,14.7013,135.07,135.03,3.332]
[1726108672708,3.3315,135.06,135.0,1.2949]
[1726108672907,3.3315,135.06,135.0,12.6649]
[1726108673417,3.77397622,135.05,135.02,3.3321]
[1726108674111,11.37,135.07,135.0,11.37]
[1726108674317,106.82605198,135.12,134.98,15.11360663]
[1726108674318,11.37,135.06,134.98,15.11360663]
[1726108674508,11.37,135.06,134.94,2.7286]
[1726108674714,3.3319,135.04,135.0,3.3326]
[1726108675016,7.10995018,135.04,135.0,3.3326]
[1726108675216,3.3319,135.04,135.0,3.3326]
[1726108675918,3.3316,135.05,135.01,3.3325]
[1726108676310,6.95483938,135.05,135.02,3.3322]
[1726108677216,14.0567,135.09,135.03,11.37]
[1726108677414,235.7338346,135.21,135.07,11.37]
[1726108677615,2.6074,135.2,135.11,11.37]
[1726108677820,17.72598255,135.2,135.15,11.37]
[1726108678011,17.72598255,135.19,135.15,11.37]
[1726108678216,11.37,135.21,135.15,11.37]
[1726108678820,20.32975646,135.25,135.15,11.37]
[1726108679022,20.32975646,135.25,135.12,4.186]
[1726108679023,12.54464288,135.24,135.18,11.37]
[1726108679218,20.32975646,135.25,135.12,4.186]
[1726108679219,21.3921628,135.25,135.21,11.37]
[1726108679414,3.66980634,135.25,135.22,3.3273]
[1726108679625,3.66980634,135.25,135.21,11.37]
[1726108679922,103.01096336,135.26,135.21,11.37]
[1726108680317,3.62238872,135.25,135.21,11.37]
[1726108680513,103.01096336,135.26,135.18,17.75]
[1726108680819,106.75022719,135.26,135.18,17.75]
[1726108681019,106.75022719,135.26,135.19,1.3851]
[1726108681817,110.07682719,135.26,135.19,1.3851]
[1726108682612,106.75022719,135.26,135.2,3.3278]
[1726108682819,3.3267,135.25,135.19,1.3851]
[1726108683320,3.3267,135.25,135.19,4.713]
[1726108683722,103.01096336,135.26,135.19,2.7742]
[1726108684023,103.01096336,135.26,135.21,3.3276]
[1726108684214,7.01703939,135.26,135.21,3.3276]
[1726108685518,3.3266,135.25,135.2,21.0778]
[1726108686226,3.3266,135.25,135.2,3.3278]
[1726108686426,3.3271,135.24,135.19,6.1023]
[1726108687315,21.44053939,135.26,135.19,1.3851]
[1726108688117,2.7094,135.25,135.19,1.3851]
[1726108688530,3.3273,135.23,135.19,1.3851]
[1726108689824,3.3275,135.22,135.19,1.3851]
[1726108690021,2.7094,135.25,135.19,1.3851]
[1726108690427,3.3274,135.22,135.19,1.3851]
[1726108692633,3.3276,135.21,135.19,1.3851]
[1726108693024,3.3274,135.22,135.19,1.3851]
[1726108694831,3.3277,135.21,135.17,3.3284]
[1726108695531,3.3274,135.22,135.17,3.3284]
[1726108696437,3.3276,135.21,135.17,3.3284]
[1726108697036,3.3275,135.22,135.18,3.3282]
[1726108697234,2.7094,135.25,135.17,17.75]
[1726108697433,3.3267,135.25,135.19,17.75]
[1726108697734,3.68886622,135.27,135.19,17.75]
[1726108697941,478.70358348,135.29,135.19,17.75]
[1726108698243,3.3266,135.26,135.21,3.3275]
[1726108698433,482.3469538,135.29,135.21,3.3275]
[1726108698638,1.17432703,135.28,135.19,17.75]
[1726108699040,482.3469538,135.29,135.19,17.75]
[1726108699348,3.3268,135.25,135.2,3.3278]
[1726108699537,17.75,135.28,135.2,3.3278]
[1726108700043,3.3268,135.25,135.2,3.3278]
[1726108700439,17.75,135.28,135.2,3.3278]
[1726108701348,17.75,135.26,135.19,3.328]
[1726108701548,2.6842,135.25,135.17,17.75]
[1726108701844,3.3272,135.23,135.17,17.75]
[1726108702041,2.6842,135.25,135.17,17.75]
[1726108702247,14.0442,135.25,135.19,11.36]
[1726108702640,3.327,135.24,135.19,14.6879]
[1726108702841,14.0442,135.25,135.19,14.6879]
[1726108703849,3.3273,135.23,135.19,14.6879]
[1726108706847,2.6842,135.25,135.19,14.6879]
[1726108706848,3.327,135.24,135.19,14.6879]
[1726108707952,3.3271,135.23,135.19,14.6879]
[1726108708154,3.3271,135.23,135.19,11.36]
[1726108709152,3.3269,135.24,135.2,3.3278]
[1726108709353,2.6842,135.25,135.21,11.36]
[1726108709553,11.36,135.27,135.21,11.36]
[1726108709754,3.3267,135.25,135.21,14.6875]
[1726108710153,3.64337032,135.29,135.15,4.99791409]
[1726108710349,2.7933,135.32,135.15,4.99791409]
[1726108710350,11.36,135.24,135.15,4.99791409]
[1726108710550,3.74509345,135.23,135.18,11.36]
[1726108711456,11.36,135.24,135.18,11.36]
[1726108711854,3.3275,135.22,135.18,14.6882]
[1726108712056,3.3275,135.22,135.18,11.36]
[1726108712461,3.3272,135.23,135.19,11.36]
[1726108713762,3.3272,135.23,135.19,14.688]
[1726108714268,18.40646881,135.24,135.19,14.688]
[1726108714649,7.04646881,135.24,135.19,14.688]
[1726108715260,7.04646881,135.24,135.2,3.3278]
[1726108718358,7.04646881,135.24,135.19,14.688]
[1726108718758,7.04646881,135.24,135.19,11.36]
[1726108718962,16.0675,135.25,135.19,11.36]
[1726108719162,1.3005,135.26,135.21,11.36]
[1726108719463,3.66048031,135.27,135.22,11.36]
[1726108719658,11.36,135.29,135.22,11.36]
[1726108720259,15.08928077,135.29,135.22,11.36]
[1726108720960,15.08928077,135.29,135.23,3.3269]
[1726108720961,3.3263,135.27,135.23,3.3269]
[1726108721162,15.08928077,135.29,135.22,11.36]
[1726108721361,15.08928077,135.29,135.15,4.99791409]
[1726108721362,3.3272,135.23,135.15,4.99791409]
[1726108721753,3.3272,135.23,135.19,11.36]
[1726108723069,3.3274,135.22,135.17,3.3285]
[1726108723259,3.3274,135.22,135.17,14.6885]
[1726108723567,3.7888248,135.22,135.17,14.6885]
[1726108723767,7.1163248,135.22,135.17,14.6885]
[1726108724161,7.1163248,135.22,135.17,3.3285]
[1726108725264,3.3277,135.21,135.17,3.3285]
[1726108726171,7.1162248,135.22,135.17,3.3285]
[1726108726371,3.3274,135.22,135.17,3.3285]
[1726108726577,19.0608,135.26,135.16,21.0788]
[1726108727571,3.3278,135.21,135.16,21.0788]
[1726108727873,3.69515394,135.22,135.16,21.0788]
[1726108728059,19.0608,135.26,135.16,21.0788]
[1726108728265,1.17454851,135.25,135.16,21.0788]
[1726108728768,3.3278,135.21,135.16,21.0788]
[1726108728975,7.02803656,135.21,135.16,21.0788]
[1726108729164,19.0608,135.26,135.16,21.0788]
[1726108729366,1.17455479,135.25,135.16,21.0788]
[1726108729768,19.0608,135.26,135.16,21.0788]
[1726108729970,1.17455479,135.25,135.16,21.0788]
[1726108730266,3.3278,135.21,135.16,21.0788]
[1726108730467,7.0990598,135.21,135.16,21.0788]
[1726108730669,3.7712598,135.21,135.15,4.99791409]
[1726108730868,17.75,135.24,135.15,4.99791409]
[1726108731173,17.75,135.24,135.16,3.3287]
[1726108732572,3.328,135.2,135.16,3.3287]
[1726108736469,17.75,135.24,135.15,1.3035]
[1726108736676,17.75,135.21,135.15,1.3035]
[1726108736873,17.75,135.23,135.15,1.3035]
[1726108737069,17.75,135.23,135.15,19.0535]
[1726108737270,3.3279,135.2,135.16,3.3288]
[1726108737470,3.78458524,135.24,135.17,17.75]
[1726108737671,1.3108,135.26,135.17,17.75]
[1726108738274,3.3273,135.23,135.19,3.3281]
[1726108738476,3.3273,135.23,135.17,17.75]
[1726108739181,3.3273,135.23,135.18,3.3283]
[1726108739573,3.3274,135.22,135.18,3.3283]
[1726108739776,5.00067901,135.26,135.18,3.3283]
[1726108740874,3.3272,135.23,135.18,3.3283]
[1726108741772,3.3272,135.23,135.19,3.328]
[1726108741971,5.00067901,135.26,135.19,17.75]
[1726108742179,3.68987901,135.26,135.21,3.3274]
[1726108742886,3.3266,135.25,135.21,3.3274]
[1726108743573,7.01627901,135.26,135.22,3.3274]
[1726108744281,7.01627901,135.26,135.22,14.6774]
[1726108744675,7.01627901,135.26,135.22,11.35]
[1726108747785,106.33581846,135.27,135.22,11.35]
[1726108747975,3.3262,135.27,135.24,11.35]
[1726108749074,7.00285346,135.28,135.24,11.35]
[1726108749482,3.3259,135.28,135.25,11.35]
[1726108749682,19.79354716,135.28,135.25,11.35]
[1726108749985,7.00006484,135.29,135.25,11.35]
[1726108750179,3.67436484,135.29,135.25,11.35]
[1726108750482,3.3269,135.25,135.23,11.35]
[1726108751984,3.3265,135.26,135.23,11.35]
[1726108752778,3.3266,135.25,135.23,11.35]
[1726108754187,3.3266,135.25,135.21,6.0997]
[1726108754380,3.3266,135.25,135.22,11.35]
[1726108754981,3.3266,135.25,135.23,11.35]
[1726108755176,16.46760423,135.28,135.23,11.35]
[1726108755177,3.3264,135.26,135.23,11.35]
[1726108757882,3.3264,135.26,135.22,3.3274]
[1726108758288,3.3264,135.26,135.24,11.35]
[1726108758877,31.52365006,135.29,135.21,6.0996]
[1726108759087,15.05690753,135.29,135.21,9.70685758]
[1726108759289,15.05690753,135.29,135.24,11.35]
[1726108759789,3.3265,135.26,135.24,11.35]
[1726108764383,3.3266,135.25,135.24,11.35]
[1726108765591,3.3264,135.26,135.24,11.35]
[1726108767895,3.3262,135.27,135.24,11.35]
[1726108768086,3.70690753,135.29,135.24,11.35]
[1726108768285,11.7735,135.31,135.24,11.35]
[1726108768286,28.24005931,135.31,135.24,11.35]
[1726108768481,1.17407051,135.3,135.24,11.35]
[1726108768685,4.78170682,135.3,135.24,11.35]
[1726108768892,3.60763631,135.3,135.24,11.35]
[1726108769192,16.46655931,135.31,135.27,11.35]
[1726108769392,3.71005665,135.3,135.27,11.35]
[1726108770095,3.3257,135.29,135.27,11.35]
[1726108771394,3.3259,135.28,135.27,11.35]
[1726108773787,3.70414068,135.3,135.21,6.40746745]
[1726108774095,11.35,135.29,135.23,11.35]
[1726108774493,3.3269,135.24,135.23,11.35]
[1726108777698,3.3267,135.25,135.23,11.35]
[1726108777997,3.3267,135.25,135.24,11.35]
[1726108778492,3.3265,135.26,135.24,11.35]
[1726108778692,106.04109946,135.32,135.24,11.35]
[1726108778900,1.17382948,135.31,135.26,11.35]
[1726108779101,3.3261,135.28,135.26,11.35]
[1726108780686,105.61869946,135.32,135.27,11.35]
[1726108780892,105.61869946,135.32,135.28,11.35]
[1726108781293,3.3253,135.31,135.3,11.35]
[1726108785802,3.3254,135.3,135.27,1.4251]
[1726108786004,3.3254,135.3,135.28,11.35]
[1726108788102,3.3252,135.31,135.28,11.35]
[1726108788701,3.3252,135.31,135.3,11.35]
[1726108793207,3.3252,135.31,135.28,11.35]
[1726108794999,102.96789946,135.32,135.28,11.35]
[1726108795192,3.3254,135.3,135.28,11.35]
[1726108797398,3.3254,135.3,135.27,1.4251]
[1726108797593,3.3254,135.3,135.29,11.35]
[1726108798402,3.3252,135.31,135.29,11.35]
[1726108804210,11.35,135.35,135.29,11.35]